[Event "*** Titled Tuesday Blitz"]
[Site "Chess.com"]
[Date "2020.12.29"]
[Round "10"]
[White "glebus008"]
[Black "Agoking701"]
[Result "0-1"]
[WhiteElo "2244"]
[BlackElo "2354"]
[TimeControl "180+1"]
[EndTime "11:56:18 PST"]
[Termination "Agoking701 won by checkmate"]

1. e4 {[%clk 0:03:00.9]} 1... c6 {[%clk 0:02:57.6]} 2. d4 {[%clk 0:02:58.8]}
2... d5 {[%clk 0:02:58.1]} 3. Nd2 {[%clk 0:02:54.6]} 3... dxe4 {[%clk
0:02:53.7]} 4. Nxe4 {[%clk 0:02:55.5]} 4... Nd7 {[%clk 0:02:53.8]} 5. Nf3 {[%clk
0:02:53]} 5... Ngf6 {[%clk 0:02:53.8]} 6. Nxf6+ {[%clk 0:02:52.7]} 6... Nxf6
{[%clk 0:02:53.5]} 7. Bc4 {[%clk 0:02:52.3]} 7... Bf5 {[%clk 0:02:51.7]} 8. O-O
{[%clk 0:02:42.9]} 8... e6 {[%clk 0:02:50.8]} 9. Bb3 {[%clk 0:02:41.8]} 9... Bd6
{[%clk 0:02:50.3]} 10. Re1 {[%clk 0:02:40.9]} 10... O-O {[%clk 0:02:50.5]} 11.
Ne5 {[%clk 0:02:39.4]} 11... Nd5 {[%clk 0:02:45.5]} 12. c3 {[%clk 0:02:38.9]}
12... Qc7 {[%clk 0:02:42.6]} 13. Bd2 {[%clk 0:02:34.6]} 13... Rad8 {[%clk
0:02:42.6]} 14. Qe2 {[%clk 0:02:32]} 14... c5 {[%clk 0:02:36.9]} 15. Bxd5 {[%clk
0:02:23]} 15... exd5 {[%clk 0:02:36]} 16. h3 {[%clk 0:02:17.3]} 16... Rfe8
{[%clk 0:02:27.2]} 17. Qb5 {[%clk 0:01:30.2]} 17... a6 {[%clk 0:02:17.8]} 18.
Qa4 {[%clk 0:01:27.3]} 18... Bxe5 {[%clk 0:01:56.1]} 19. Rxe5 {[%clk 0:01:28.2]}
19... Rxe5 {[%clk 0:01:55.2]} 20. dxe5 {[%clk 0:01:29.1]} 20... Qxe5 {[%clk
0:01:54.6]} 21. Be3 {[%clk 0:01:27.2]} 21... d4 {[%clk 0:01:50.4]} 22. cxd4
{[%clk 0:01:26.1]} 22... cxd4 {[%clk 0:01:51.3]} 23. Rd1 {[%clk 0:01:19.6]}
23... d3 {[%clk 0:01:42.1]} 24. Qb3 {[%clk 0:01:18.4]} 24... Qe4 {[%clk
0:01:26.5]} 25. Rd2 {[%clk 0:01:02.1]} 25... h6 {[%clk 0:01:24.7]} 26. Qb6
{[%clk 0:00:59.7]} 26... Kh7 {[%clk 0:01:21.5]} 27. Qxd8 {[%clk 0:00:58.2]}
27... Qc4 {[%clk 0:01:07.4]} 28. Qd4 {[%clk 0:00:53.1]} 28... Qxa2 {[%clk
0:01:04.8]} 29. Kh2 {[%clk 0:00:46.6]} 29... Qb3 {[%clk 0:00:58.8]} 30. Qc3
{[%clk 0:00:44.4]} 30... Qd5 {[%clk 0:00:56]} 31. Qd4 {[%clk 0:00:43.2]} 31...
Qb3 {[%clk 0:00:54.6]} 32. Qc3 {[%clk 0:00:42.8]} 32... Qd5 {[%clk 0:00:52.7]}
33. Kg1 {[%clk 0:00:42.3]} 33... Be4 {[%clk 0:00:48.8]} 34. f3 {[%clk
0:00:40.1]} 34... Bg6 {[%clk 0:00:47.6]} 35. Qd4 {[%clk 0:00:37.6]} 35... Qb3
{[%clk 0:00:42.8]} 36. Qb6 {[%clk 0:00:34.2]} 36... Qd5 {[%clk 0:00:39.8]} 37.
Bd4 {[%clk 0:00:27.1]} 37... Qg5 {[%clk 0:00:26.7]} 38. Be3 {[%clk 0:00:19.3]}
38... Qd5 {[%clk 0:00:24.8]} 39. Qd4 {[%clk 0:00:19.2]} 39... Qb3 {[%clk
0:00:24.4]} 40. Qf4 {[%clk 0:00:18.1]} 40... Qd5 {[%clk 0:00:20.7]} 41. h4
{[%clk 0:00:17.8]} 41... h5 {[%clk 0:00:18.3]} 42. Kh2 {[%clk 0:00:17.5]} 42...
Qe6 {[%clk 0:00:17.7]} 43. g4 {[%clk 0:00:17.2]} 43... Qe7 {[%clk 0:00:15.3]}
44. Qg5 {[%clk 0:00:16]} 44... Qd6+ {[%clk 0:00:14.3]} 45. Bf4 {[%clk
0:00:15.3]} 45... Qc6 {[%clk 0:00:13.8]} 46. Kg3 {[%clk 0:00:14.5]} 46... f6
{[%clk 0:00:11.6]} 47. Qa5 {[%clk 0:00:11.3]} 47... hxg4 {[%clk 0:00:11.8]} 48.
fxg4 {[%clk 0:00:10.7]} 48... Qh1 {[%clk 0:00:11.6]} 49. Qc5 {[%clk 0:00:07.4]}
49... Qe1+ {[%clk 0:00:10.2]} 50. Qf2 {[%clk 0:00:07.2]} 50... Qh1 {[%clk
0:00:10.6]} 51. h5 {[%clk 0:00:06.7]} 51... Be4 {[%clk 0:00:09.6]} 52. Qh2
{[%clk 0:00:05.4]} 52... Qe1+ {[%clk 0:00:09.5]} 53. Qf2 {[%clk 0:00:04.5]}
53... Qh1 {[%clk 0:00:09.9]} 54. g5 {[%clk 0:00:03.8]} 54... f5 {[%clk
0:00:08.2]} 55. g6+ {[%clk 0:00:03.5]} 55... Kh8 {[%clk 0:00:08.5]} 56. Qh2
{[%clk 0:00:01.7]} 56... Qf3+ {[%clk 0:00:08.1]} 57. Kh4 {[%clk 0:00:01.8]}
57... Qg4# {[%clk 0:00:08.4]} 0-1

[Event "*** Titled Tuesday Blitz"]
[Site "Chess.com"]
[Date "2020.12.29"]
[Round "10"]
[White "AttilaTurzo"]
[Black "1977Ivan"]
[Result "0-1"]
[WhiteElo "2488"]
[BlackElo "2688"]
[TimeControl "180+1"]
[EndTime "11:56:26 PST"]
[Termination "1977Ivan won on time"]

1. d4 {[%clk 0:03:00.9]} 1... d5 {[%clk 0:03:00.3]} 2. Bf4 {[%clk 0:02:58.3]}
2... c5 {[%clk 0:02:58.9]} 3. e3 {[%clk 0:02:53.4]} 3... cxd4 {[%clk 0:02:59.2]}
4. exd4 {[%clk 0:02:51.7]} 4... Nc6 {[%clk 0:02:59.7]} 5. c3 {[%clk 0:02:50.7]}
5... Bf5 {[%clk 0:03:00.2]} 6. Nf3 {[%clk 0:02:48]} 6... e6 {[%clk 0:03:00.4]}
7. Be2 {[%clk 0:02:46.4]} 7... f6 {[%clk 0:02:49.9]} 8. O-O {[%clk 0:02:42]}
8... g5 {[%clk 0:02:49.9]} 9. Be3 {[%clk 0:02:36.8]} 9... Bd6 {[%clk 0:02:43]}
10. c4 {[%clk 0:02:36.3]} 10... Nge7 {[%clk 0:02:41.9]} 11. Nc3 {[%clk
0:02:35.9]} 11... a6 {[%clk 0:02:26.3]} 12. Re1 {[%clk 0:02:34.7]} 12... O-O
{[%clk 0:02:11.1]} 13. Rc1 {[%clk 0:02:26.7]} 13... Kh8 {[%clk 0:02:09.9]} 14.
Nd2 {[%clk 0:02:17.3]} 14... Rc8 {[%clk 0:01:57.1]} 15. Bf3 {[%clk 0:02:05.4]}
15... Bb8 {[%clk 0:01:51.8]} 16. b3 {[%clk 0:01:51]} 16... Ba7 {[%clk
0:01:38.2]} 17. Nf1 {[%clk 0:01:48.4]} 17... dxc4 {[%clk 0:01:36.9]} 18. d5
{[%clk 0:01:40.7]} 18... Bxe3 {[%clk 0:01:31.6]} 19. Nxe3 {[%clk 0:01:40.3]}
19... Ne5 {[%clk 0:01:08.6]} 20. Nxf5 {[%clk 0:01:09.3]} 20... Nxf5 {[%clk
0:01:06.2]} 21. bxc4 {[%clk 0:01:09.2]} 21... Nh4 {[%clk 0:00:57.5]} 22. Be4
{[%clk 0:00:56.5]} 22... exd5 {[%clk 0:00:42]} 23. Bxd5 {[%clk 0:00:46.7]} 23...
Rc7 {[%clk 0:00:38.3]} 24. Ne4 {[%clk 0:00:44.6]} 24... Nhg6 {[%clk 0:00:32.8]}
25. g3 {[%clk 0:00:40.7]} 25... g4 {[%clk 0:00:27.1]} 26. Re3 {[%clk 0:00:33.6]}
26... Qe7 {[%clk 0:00:24.9]} 27. Kg2 {[%clk 0:00:32.4]} 27... Qg7 {[%clk
0:00:21.3]} 28. c5 {[%clk 0:00:29.4]} 28... Re7 {[%clk 0:00:18.9]} 29. Nd6
{[%clk 0:00:28.6]} 29... f5 {[%clk 0:00:18.4]} 30. Qd4 {[%clk 0:00:22.2]} 30...
f4 {[%clk 0:00:18.4]} 31. Re4 {[%clk 0:00:22.3]} 31... Qf6 {[%clk 0:00:16.8]}
32. Rce1 {[%clk 0:00:18.4]} 32... fxg3 {[%clk 0:00:16.3]} 33. hxg3 {[%clk
0:00:16.6]} 33... Qg7 {[%clk 0:00:07.7]} 34. R4e2 {[%clk 0:00:15.2]} 34... h6
{[%clk 0:00:05]} 35. Nxb7 {[%clk 0:00:14.6]} 35... Rxb7 {[%clk 0:00:01.6]} 36.
Rxe5 {[%clk 0:00:14.1]} 36... Nxe5 {[%clk 0:00:01.7]} 37. Rxe5 {[%clk 0:00:12]}
37... Re7 {[%clk 0:00:01.4]} 38. Re4 {[%clk 0:00:09.2]} 38... Qxd4 {[%clk
0:00:02.3]} 39. Rxd4 {[%clk 0:00:10.1]} 39... Rc7 {[%clk 0:00:02.9]} 40. c6
{[%clk 0:00:09.8]} 40... Rd8 {[%clk 0:00:03.4]} 41. Rd3 {[%clk 0:00:06.6]} 41...
Rxc6 {[%clk 0:00:03.4]} 42. Bxc6 {[%clk 0:00:06.1]} 42... Rxd3 {[%clk
0:00:02.8]} 43. a4 {[%clk 0:00:06.2]} 43... Ra3 {[%clk 0:00:03.7]} 44. Kf1
{[%clk 0:00:05.7]} 44... Kg7 {[%clk 0:00:04.1]} 45. Ke2 {[%clk 0:00:05.9]} 45...
Kf6 {[%clk 0:00:04.6]} 46. Bd7 {[%clk 0:00:05.9]} 46... Ke5 {[%clk 0:00:04.5]}
47. Bc6 {[%clk 0:00:04.8]} 47... h5 {[%clk 0:00:04]} 48. Be8 {[%clk 0:00:04.6]}
48... Kf5 {[%clk 0:00:03]} 49. Bd7+ {[%clk 0:00:01.8]} 49... Kg5 {[%clk
0:00:02.9]} 50. Bc6 {[%clk 0:00:01.8]} 50... h4 {[%clk 0:00:02.9]} 51. gxh4+
{[%clk 0:00:02.7]} 51... Kxh4 {[%clk 0:00:03.4]} 52. Kd2 {[%clk 0:00:02]} 52...
g3 {[%clk 0:00:03.2]} 53. fxg3+ {[%clk 0:00:02]} 53... Kxg3 {[%clk 0:00:04.1]}
54. Kc2 {[%clk 0:00:02.4]} 54... Kf4 {[%clk 0:00:04]} 55. Kb2 {[%clk 0:00:02.6]}
55... Rd3 {[%clk 0:00:03.9]} 56. Bb7 {[%clk 0:00:02.6]} 56... a5 {[%clk
0:00:04]} 57. Bc6 {[%clk 0:00:02.5]} 57... Ke5 {[%clk 0:00:02.9]} 58. Bb5 {[%clk
0:00:02.7]} 58... Rd4 {[%clk 0:00:03.3]} 59. Kc3 {[%clk 0:00:02.8]} 59... Rb4
{[%clk 0:00:03.7]} 60. Bc6 {[%clk 0:00:02.6]} 60... Kd6 {[%clk 0:00:03.7]} 61.
Bb5 {[%clk 0:00:02.9]} 61... Kc5 {[%clk 0:00:04.1]} 62. Kd3 {[%clk 0:00:03.3]}
62... Rb3+ {[%clk 0:00:03.9]} 63. Kc2 {[%clk 0:00:03.4]} 63... Kb4 {[%clk
0:00:04.4]} 64. Bd7 {[%clk 0:00:01.6]} 64... Re3 {[%clk 0:00:04.2]} 65. Bb5
{[%clk 0:00:01.1]} 65... Rg3 {[%clk 0:00:04]} 0-1

[Event "*** Titled Tuesday Blitz"]
[Site "Chess.com"]
[Date "2020.12.29"]
[Round "10"]
[White "Das_Virus_2020"]
[Black "Martins-BR"]
[Result "1/2-1/2"]
[WhiteElo "2453"]
[BlackElo "2280"]
[TimeControl "180+1"]
[EndTime "11:56:33 PST"]
[Termination "Game drawn by stalemate"]

1. e4 {[%clk 0:03:00.6]} 1... c5 {[%clk 0:02:59.5]} 2. c3 {[%clk 0:03:00.5]}
2... Nf6 {[%clk 0:02:58.5]} 3. e5 {[%clk 0:03:00]} 3... Nd5 {[%clk 0:02:59.1]}
4. Nf3 {[%clk 0:03:00.2]} 4... e6 {[%clk 0:02:57.9]} 5. d4 {[%clk 0:03:00]} 5...
cxd4 {[%clk 0:02:58.8]} 6. cxd4 {[%clk 0:03:00.5]} 6... d6 {[%clk 0:02:59.2]} 7.
a3 {[%clk 0:02:58.3]} 7... Bd7 {[%clk 0:02:58.7]} 8. Bd3 {[%clk 0:02:55.3]} 8...
Bc6 {[%clk 0:02:58.4]} 9. O-O {[%clk 0:02:53.1]} 9... Nd7 {[%clk 0:02:58.2]} 10.
Re1 {[%clk 0:02:49.2]} 10... a6 {[%clk 0:02:55.1]} 11. Nbd2 {[%clk 0:02:38.4]}
11... Nf4 {[%clk 0:02:53.9]} 12. Bf1 {[%clk 0:02:37.3]} 12... dxe5 {[%clk
0:02:49.6]} 13. dxe5 {[%clk 0:02:36.6]} 13... Be7 {[%clk 0:02:41.8]} 14. Ne4
{[%clk 0:02:20.5]} 14... Nd5 {[%clk 0:02:38.6]} 15. Bd3 {[%clk 0:02:15.4]} 15...
h6 {[%clk 0:02:34]} 16. Qe2 {[%clk 0:02:11.7]} 16... O-O {[%clk 0:02:33]} 17.
Bd2 {[%clk 0:02:02.7]} 17... Re8 {[%clk 0:02:31.7]} 18. Rad1 {[%clk 0:01:59.1]}
18... Qc7 {[%clk 0:02:29.1]} 19. Ng3 {[%clk 0:01:54.8]} 19... Nf8 {[%clk
0:02:25.9]} 20. Nd4 {[%clk 0:01:46.7]} 20... Ba4 {[%clk 0:02:11.2]} 21. Rc1
{[%clk 0:01:44.1]} 21... Qb8 {[%clk 0:02:10.3]} 22. Qg4 {[%clk 0:01:40]} 22...
Kh8 {[%clk 0:02:06.3]} 23. Nxe6 {[%clk 0:01:31.7]} 23... Nxe6 {[%clk 0:02:05.5]}
24. Qxa4 {[%clk 0:01:30.8]} 24... Rd8 {[%clk 0:02:04]} 25. Qe4 {[%clk
0:01:29.9]} 25... Nf8 {[%clk 0:02:03.3]} 26. Nf5 {[%clk 0:01:27.1]} 26... Rd7
{[%clk 0:01:54.4]} 27. Qg4 {[%clk 0:01:17.6]} 27... Ng6 {[%clk 0:01:45.9]} 28.
Nxg7 {[%clk 0:01:01.7]} 28... Kxg7 {[%clk 0:01:43.1]} 29. Qxd7 {[%clk
0:01:01.1]} 29... Qd8 {[%clk 0:01:43.2]} 30. Qf5 {[%clk 0:00:57.9]} 30... Bg5
{[%clk 0:01:33]} 31. Bxg5 {[%clk 0:00:56.8]} 31... Qxg5 {[%clk 0:01:31.3]} 32.
Qxg5 {[%clk 0:00:56.5]} 32... hxg5 {[%clk 0:01:30.9]} 33. Be4 {[%clk 0:00:55.6]}
33... Ndf4 {[%clk 0:01:27.1]} 34. g3 {[%clk 0:00:54.8]} 34... Ne6 {[%clk
0:01:26.2]} 35. Red1 {[%clk 0:00:51.5]} 35... Rb8 {[%clk 0:01:26.2]} 36. Rd7
{[%clk 0:00:47.7]} 36... Nxe5 {[%clk 0:01:26.1]} 37. Rxb7 {[%clk 0:00:47.1]}
37... Rd8 {[%clk 0:01:24.9]} 38. Ra7 {[%clk 0:00:43]} 38... Rd2 {[%clk
0:01:23.5]} 39. Rxa6 {[%clk 0:00:40.2]} 39... Rxb2 {[%clk 0:01:22.6]} 40. Bd5
{[%clk 0:00:40.1]} 40... Nd4 {[%clk 0:01:19.7]} 41. Kg2 {[%clk 0:00:37.6]} 41...
g4 {[%clk 0:01:18.2]} 42. Ra7 {[%clk 0:00:33]} 42... Rd2 {[%clk 0:01:10]} 43.
Rcc7 {[%clk 0:00:28.2]} 43... Ndf3 {[%clk 0:01:01.2]} 44. Bxf3 {[%clk
0:00:25.5]} 44... gxf3+ {[%clk 0:00:58.5]} 45. Kh3 {[%clk 0:00:25]} 45... Rxf2
{[%clk 0:00:57.8]} 46. Ra5 {[%clk 0:00:23.1]} 46... Re2 {[%clk 0:00:57.9]} 47.
Rxe5 {[%clk 0:00:17.6]} 47... Rxe5 {[%clk 0:00:57.1]} 48. Rc1 {[%clk 0:00:13.6]}
48... Re3 {[%clk 0:00:51.8]} 49. Rf1 {[%clk 0:00:11.7]} 49... Rxa3 {[%clk
0:00:51.4]} 50. Kg4 {[%clk 0:00:11.6]} 50... Kg6 {[%clk 0:00:47.4]} 51. Rxf3
{[%clk 0:00:09.5]} 51... Ra4+ {[%clk 0:00:43.7]} 52. Kh3 {[%clk 0:00:09.2]}
52... f5 {[%clk 0:00:42.5]} 53. Rb3 {[%clk 0:00:08.6]} 53... Ra6 {[%clk
0:00:41.2]} 54. Rb2 {[%clk 0:00:08.6]} 54... Kg5 {[%clk 0:00:39.8]} 55. Kg2
{[%clk 0:00:08.6]} 55... Ra4 {[%clk 0:00:37.1]} 56. h3 {[%clk 0:00:08.5]} 56...
Rc4 {[%clk 0:00:36.4]} 57. Rb3 {[%clk 0:00:08.5]} 57... Ra4 {[%clk 0:00:36.2]}
58. Kf3 {[%clk 0:00:08.6]} 58... Rc4 {[%clk 0:00:35.5]} 59. h4+ {[%clk
0:00:08.7]} 59... Kh5 {[%clk 0:00:27.4]} 60. Rb5 {[%clk 0:00:07.1]} 60... Kg6
{[%clk 0:00:26.7]} 61. Rb6+ {[%clk 0:00:06.4]} 61... Kg7 {[%clk 0:00:23]} 62.
Re6 {[%clk 0:00:05]} 62... Rb4 {[%clk 0:00:21.7]} 63. Rd6 {[%clk 0:00:04.8]}
63... Ra4 {[%clk 0:00:21]} 64. h5 {[%clk 0:00:04.8]} 64... Rb4 {[%clk
0:00:18.3]} 65. Rg6+ {[%clk 0:00:04.6]} 65... Kf7 {[%clk 0:00:17]} 66. Kg2
{[%clk 0:00:04.6]} 66... Ra4 {[%clk 0:00:15.5]} 67. Kh3 {[%clk 0:00:04.6]} 67...
Rb4 {[%clk 0:00:15.5]} 68. g4 {[%clk 0:00:02.8]} 68... fxg4+ {[%clk 0:00:14.7]}
69. Rxg4 {[%clk 0:00:03.2]} 69... Rxg4 {[%clk 0:00:14.7]} 70. Kxg4 {[%clk
0:00:03.9]} 70... Kg7 {[%clk 0:00:15.3]} 71. Kg5 {[%clk 0:00:04.7]} 71... Kh7
{[%clk 0:00:15.6]} 72. h6 {[%clk 0:00:05.6]} 72... Kh8 {[%clk 0:00:16.5]} 73.
Kg6 {[%clk 0:00:06.5]} 73... Kg8 {[%clk 0:00:17.2]} 74. h7+ {[%clk 0:00:06.9]}
74... Kh8 {[%clk 0:00:18.1]} 75. Kh6 {[%clk 0:00:07.2]} 1/2-1/2

[Event "*** Titled Tuesday Blitz"]
[Site "Chess.com"]
[Date "2020.12.29"]
[Round "10"]
[White "lelajavakhishvili"]
[Black "Godzillator"]
[Result "1-0"]
[WhiteElo "2520"]
[BlackElo "2349"]
[TimeControl "180+1"]
[EndTime "11:56:38 PST"]
[Termination "lelajavakhishvili won by resignation"]

1. d4 {[%clk 0:03:00.9]} 1... d5 {[%clk 0:02:59.4]} 2. c4 {[%clk 0:03:01.1]}
2... c6 {[%clk 0:02:59.4]} 3. Nf3 {[%clk 0:03:01]} 3... Nf6 {[%clk 0:02:59.5]}
4. e3 {[%clk 0:03:01.4]} 4... Bf5 {[%clk 0:02:58.6]} 5. Nc3 {[%clk 0:03:01.2]}
5... a6 {[%clk 0:02:58.4]} 6. Bd3 {[%clk 0:02:59.5]} 6... Bxd3 {[%clk
0:02:57.7]} 7. Qxd3 {[%clk 0:03:00.4]} 7... e6 {[%clk 0:02:58.2]} 8. O-O {[%clk
0:02:58.2]} 8... Bb4 {[%clk 0:02:58.5]} 9. Bd2 {[%clk 0:02:41.5]} 9... O-O
{[%clk 0:02:57.5]} 10. Rac1 {[%clk 0:02:31.4]} 10... b5 {[%clk 0:02:51]} 11.
cxd5 {[%clk 0:02:21.7]} 11... cxd5 {[%clk 0:02:40.7]} 12. Ne5 {[%clk 0:02:21.7]}
12... Bxc3 {[%clk 0:02:37.8]} 13. Bxc3 {[%clk 0:02:20.8]} 13... Nfd7 {[%clk
0:02:30.1]} 14. Bb4 {[%clk 0:02:13.7]} 14... Re8 {[%clk 0:02:29.5]} 15. f4
{[%clk 0:02:06.7]} 15... Nf6 {[%clk 0:02:27]} 16. Rc2 {[%clk 0:01:49.5]} 16...
g6 {[%clk 0:02:23.5]} 17. Rfc1 {[%clk 0:01:48]} 17... Ra7 {[%clk 0:02:23.6]} 18.
Bc5 {[%clk 0:01:46.2]} 18... Rb7 {[%clk 0:01:55.3]} 19. b3 {[%clk 0:01:41.9]}
19... Ne4 {[%clk 0:01:54.5]} 20. Bb4 {[%clk 0:01:31.6]} 20... f6 {[%clk
0:01:51.1]} 21. Nc6 {[%clk 0:01:29.1]} 21... Nxc6 {[%clk 0:01:50.6]} 22. Rxc6
{[%clk 0:01:30]} 22... a5 {[%clk 0:01:42.8]} 23. Be1 {[%clk 0:01:29.4]} 23... a4
{[%clk 0:01:42.5]} 24. bxa4 {[%clk 0:01:18.9]} 24... bxa4 {[%clk 0:01:42.1]} 25.
Qa6 {[%clk 0:01:19.4]} 25... Qa8 {[%clk 0:01:37.2]} 26. Rxe6 {[%clk 0:01:15.6]}
26... Qxa6 {[%clk 0:01:22.7]} 27. Rxa6 {[%clk 0:01:15]} 27... Rb2 {[%clk
0:01:09.7]} 28. Rxa4 {[%clk 0:01:14.5]} 28... Nd6 {[%clk 0:01:09.7]} 29. Bf2
{[%clk 0:00:45.5]} 29... Nc4 {[%clk 0:01:08.7]} 30. Ra6 {[%clk 0:00:41.4]} 30...
Kf7 {[%clk 0:01:02.8]} 31. a4 {[%clk 0:00:39.2]} 31... Reb8 {[%clk 0:00:33.7]}
32. Ra7+ {[%clk 0:00:37.5]} 32... Ke6 {[%clk 0:00:32.9]} 33. e4 {[%clk
0:00:37.9]} 33... dxe4 {[%clk 0:00:20.7]} 34. d5+ {[%clk 0:00:34.2]} 34... Kxd5
{[%clk 0:00:16.8]} 35. Rd7+ {[%clk 0:00:33.7]} 35... Ke6 {[%clk 0:00:15.5]} 36.
Rd4 {[%clk 0:00:33.7]} 36... Nd2 {[%clk 0:00:14.5]} 37. Be3 {[%clk 0:00:31.1]}
37... Nb3 {[%clk 0:00:12.7]} 38. Rc6+ {[%clk 0:00:30.3]} 38... Ke7 {[%clk
0:00:11.7]} 39. Rxe4+ {[%clk 0:00:30]} 39... Kf7 {[%clk 0:00:11.3]} 40. Rc7+
{[%clk 0:00:29.3]} 40... Kg8 {[%clk 0:00:11.6]} 41. Ree7 {[%clk 0:00:29.2]}
41... Rb1+ {[%clk 0:00:10.3]} 42. Kf2 {[%clk 0:00:29.3]} 42... Na1 {[%clk
0:00:08.5]} 43. Rxh7 {[%clk 0:00:27.2]} 43... R1b2+ {[%clk 0:00:07.7]} 44. Kf3
{[%clk 0:00:26.5]} 44... Nc2 {[%clk 0:00:07.1]} 45. Rcg7+ {[%clk 0:00:25.7]}
45... Kf8 {[%clk 0:00:06.6]} 46. Rd7 {[%clk 0:00:23.2]} 46... Kg8 {[%clk
0:00:06.6]} 47. Rhg7+ {[%clk 0:00:22.9]} 47... Kf8 {[%clk 0:00:06.6]} 48. Rgf7+
{[%clk 0:00:22.5]} 48... Kg8 {[%clk 0:00:06.7]} 49. Rfe7 {[%clk 0:00:21.8]}
49... Nxe3 {[%clk 0:00:06]} 50. Rxe3 {[%clk 0:00:21.4]} 50... Ra2 {[%clk
0:00:05.6]} 51. Ra7 {[%clk 0:00:19.9]} 51... Kf8 {[%clk 0:00:04.9]} 52. g4
{[%clk 0:00:19.1]} 52... Rbb2 {[%clk 0:00:04.4]} 53. Ke4 {[%clk 0:00:18.4]}
53... Rb4+ {[%clk 0:00:03.6]} 54. Kf3 {[%clk 0:00:18.6]} 54... Raxa4 {[%clk
0:00:01.6]} 55. Rxa4 {[%clk 0:00:17.7]} 55... Rxa4 {[%clk 0:00:02]} 56. h4
{[%clk 0:00:17.8]} 56... Kf7 {[%clk 0:00:02.6]} 57. Rc3 {[%clk 0:00:17.4]} 57...
Rb4 {[%clk 0:00:02.9]} 58. Rc7+ {[%clk 0:00:17.4]} 58... Kf8 {[%clk 0:00:02.4]}
59. g5 {[%clk 0:00:18]} 59... fxg5 {[%clk 0:00:02.2]} 60. hxg5 {[%clk
0:00:17.9]} 60... Kg8 {[%clk 0:00:02.6]} 61. Kg4 {[%clk 0:00:18.1]} 61... Rb2
{[%clk 0:00:02.8]} 62. Rc6 {[%clk 0:00:18.2]} 62... Kg7 {[%clk 0:00:02.2]} 63.
Rc7+ {[%clk 0:00:19.1]} 63... Kg8 {[%clk 0:00:02.5]} 64. Ra7 {[%clk 0:00:20]}
64... Rg2+ {[%clk 0:00:01.4]} 65. Kf3 {[%clk 0:00:20]} 65... Rb2 {[%clk
0:00:02.3]} 66. Ke4 {[%clk 0:00:20.2]} 66... Rb5 {[%clk 0:00:03]} 67. Rd7 {[%clk
0:00:19.6]} 67... Kf8 {[%clk 0:00:03.3]} 68. Rd5 {[%clk 0:00:19.6]} 68... Rb2
{[%clk 0:00:02.1]} 69. Ke5 {[%clk 0:00:20]} 69... Rf2 {[%clk 0:00:02.2]} 70. Rd6
{[%clk 0:00:19.4]} 70... Kg7 {[%clk 0:00:01.8]} 71. Rd7+ {[%clk 0:00:19.7]}
71... Kf8 {[%clk 0:00:02.1]} 72. Kf6 {[%clk 0:00:19.5]} 72... Rxf4+ {[%clk
0:00:01.8]} 73. Kxg6 {[%clk 0:00:20.4]} 73... Kg8 {[%clk 0:00:02.1]} 74. Rd8+
{[%clk 0:00:20.6]} 74... Rf8 {[%clk 0:00:02.2]} 75. Rxf8+ {[%clk 0:00:21.2]}
75... Kxf8 {[%clk 0:00:03.1]} 76. Kh7 {[%clk 0:00:21.9]} 76... Kf7 {[%clk
0:00:03.7]} 77. g6+ {[%clk 0:00:22.8]} 1-0